[Event "7th Porticcio Open 2022"]
[Site "Porticcio"]
[Date "2022.07.06"]
[Round "7.5"]
[White "Martin Duque, Jesus"]
[Black "Yankelevich, Lev"]
[Result "1-0"]
[ECO "A21"]
[WhiteElo "2378"]
[BlackElo "2496"]
[Annotator "TA"]
[PlyCount "93"]
[EventDate "2022.07.02"]
[EventType "swiss"]
[EventCountry "FRA"]
[SourceTitle "playchess.com"]
[Source "ChessBase"]
[SourceQuality "1"]
[TimeControl "5400+30"]

{[%evp 9,93,14,12,-5,0,0,0,0,0,0,0,0,7,16,45,-63,-56,-43,-56,-41,-52,-64,-50,-46,-41,-50,-59,-56,10,13,0,0,26,9,10,24,24,25,130,117,185,175,325,322,326,327,306,310,319,310,397,392,485,505,491,483,452,491,495,495,493,487,495,491,487,480,489,479,542,518,555,553,601,601,583,541,512,491,745,745,818,742,731,715,628,604]} 1. c4 {[%emt 0:00:37]} e5 {[%emt 0:02:50]} 2. Nc3 {[%emt 0:00:10]} Bb4 {[%emt 0:01:44]} 3. Nd5 {[%emt 0:00:37]} a5 {[%emt 0:00:49]} 4. a3 {[%emt 0:03:50]} Be7 {[%emt 0:00:05]} 5. e3 {[%emt 0:03:08]} Nf6 {[%emt 0:01:55]} 6. Nc3 {[%emt 0:03:23] A21: English Opening: 1...e5 2 Nc3.} O-O {[%emt 0:01:48] [#]} 7. Qc2 $146 {[%emt 0:02:15]} ({Predecessor:} 7. Nf3 Nc6 8. Be2 d5 9. cxd5 Nxd5 10. Qc2 Be6 11. O-O f5 12. d3 Bf6 13. Re1 Nxc3 14. bxc3 {0-1 (21) Richter,N (2307)-Frischmann,R (2347) Plochingen 2020}) 7... Re8 {[%emt 0:07:35]} 8. Nf3 {[%emt 0:01:43] The position is equal.} Bf8 {[%emt 0:00:32]} 9. Be2 {[%emt 0:16:36]} c6 {[%emt 0:00:45]} 10. O-O {[%emt 0:01:12]} e4 {[%emt 0:10:01]} 11. Nd4 {[%emt 0:04:14]} b5 {[%emt 0:02:54]} 12. f3 {[%emt 0:13:56]} (12. cxb5 $14 c5 13. Nf5) 12... exf3 $1 $15 {[%emt 0:05:51]} 13. Nxf3 {[%emt 0:00:01]} bxc4 {[%emt 0:00:13]} 14. Bxc4 {[%emt 0:08:52]} d5 {[%emt 0:00:23]} 15. Bd3 {[%emt 0:00:02]} h6 {[%emt 0:03:54]} 16. b3 {[%emt 0:01:01]} Ba6 {[%emt 0:09:10]} 17. Bb2 {[%emt 0:00:19]} Bxd3 {[%emt 0:01:19]} 18. Qxd3 {[%emt 0:00:01]} Ne4 {[%emt 0:00:13]} ({Better is} 18... Qc8 $15) 19. Nd4 $11 {[%emt 0:01:53]} Nc5 {[%emt 0:06:36]} 20. Qc2 {[%emt 0:01:02]} Ne6 {[%emt 0:01:44] Against Rf4} 21. Nce2 {[%emt 0:01:50][%cal Bc3e2,Be2f4,Bf4d5][%mdl 32]} c5 {[%emt 0:01:57]} 22. Nxe6 {[%emt 0:02:42]} Rxe6 {[%emt 0:01:46]} 23. Nf4 {[%emt 0:00:09]} Re4 {[%emt 0:00:12] Black is on the road to losing.} (23... Rb6 $11 {keeps the balance.}) 24. Qd3 $16 {[%emt 0:00:34]} Nc6 {[%emt 0:05:08]} (24... Qe8 $16) 25. Nxd5 $18 {[%emt 0:00:54]} Re6 {[%emt 0:00:27] [#]} (25... Qe8 $142 26. Rf5 Rd8) 26. Rxf7 $3 {[%emt 0:12:35][%mdl 512]} Kxf7 {[%emt 0:08:47]} 27. Qf5+ {[%emt 0:00:02]} Rf6 {[%emt 0:00:04]} 28. Bxf6 {[%emt 0:00:24]} ({Less strong is} 28. Nxf6 gxf6 29. Rf1 Be7 $14) 28... gxf6 {[%emt 0:00:09]} 29. Rf1 {[%emt 0:00:08][%cal Rd5f6]} ({Inferior is} 29. Nf4 Qd6 $11) 29... Be7 {[%emt 0:04:25]} 30. Qh7+ {[%emt 0:11:06]} Ke8 {[%emt 0:01:51] [#]} 31. Nxf6+ {[%emt 0:00:24][%mdl 576] Decoy. White is clearly winning.} Bxf6 {[%emt 0:00:11]} 32. Qg6+ {[%emt 0:00:05]} Kd7 {[%emt 0:05:43] Hoping for ...Be7.} 33. Rxf6 {[%emt 0:00:03]} Qe8 {[%emt 0:02:55]} 34. Rxc6 {[%emt 0:00:49][%csl Gc6][%cal Rg6d6]} Qxg6 {[%emt 0:00:03]} 35. Rxg6 {[%emt 0:00:01][%mdl 4096] Endgame KR-KR} Rb8 {[%emt 0:00:02]} 36. Ra6 {[%emt 0:00:34]} Rxb3 {[%emt 0:00:07]} 37. Rxa5 {[%emt 0:00:04]} Kd6 {[%emt 0:00:07]} 38. Kf2 {[%emt 0:00:39]} Rb2 {[%emt 0:00:03]} 39. Ke2 {[%emt 0:01:37]} c4 {[%emt 0:00:04]} 40. Kd1 {[%emt 0:00:38]} c3 {[%emt 0:00:03]} 41. dxc3 {[%emt 0:00:09]} Rxg2 {[%emt 0:00:05]} 42. Rh5 {[%emt 0:00:26]} Ra2 {[%emt 0:00:01]} 43. a4 {[%emt 0:00:22]} Ke6 {[%emt 0:00:18]} (43... Rxa4 $142 44. Kd2 Rg4 45. Rxh6+ Kd5) 44. Rxh6+ {[%emt 0:00:17]} Ke5 {[%emt 0:00:04]} 45. Rh4 {[%emt 0:00:06]} Kd5 {[%emt 0:00:08]} 46. Rd4+ {[%emt 0:00:34]} Ke5 {[%emt 0:00:27]} 47. h4 {[%emt 0:00:03] Weighted Error Value: White=0.06 (flawless) /Black=0.28 (precise)} 1-0

[Event "7th Porticcio Open 2022"]
[Site "Porticcio"]
[Date "2022.07.06"]
[Round "7.6"]
[White "Zhukenov, Aituar"]
[Black "Rakotomaharo, Fy Antenaina"]
[Result "0-1"]
[ECO "C50"]
[WhiteElo "2148"]
[BlackElo "2490"]
[Annotator "TA"]
[PlyCount "78"]
[EventDate "2022.07.02"]
[EventType "swiss"]
[EventCountry "FRA"]
[SourceTitle "playchess.com"]
[Source "ChessBase"]
[SourceQuality "1"]
[TimeControl "5400+30"]

{[%evp 14,78,18,13,22,0,37,8,59,59,60,72,72,64,67,69,60,74,68,33,41,22,20,23,24,12,4,-181,-177,-181,-176,-167,-180,-125,-25,-44,-20,-19,-19,0,0,0,0,0,56,56,66,52,53,64,60,-76,-81,-144,-138,-294,-294,-360,-310,-351,-266,-317,-310,-354,-335,-458,-452]} 1. e4 {[%emt 0:00:08]} e5 {[%emt 0:00:05]} 2. Nf3 {[%emt 0:00:12]} Nc6 {[%emt 0:00:07]} 3. Bc4 {[%emt 0:00:57]} Bc5 {[%emt 0:00:12]} 4. d3 {[%emt 0:00:13]} Nf6 {[%emt 0:00:10]} 5. Bg5 {[%emt 0:00:53][%cal Bc1g5,Bg5h4,Bh4g3][%mdl 32]} h6 {[%emt 0:10:57]} 6. Bh4 {[%emt 0:00:16]} g5 {[%emt 0:01:10]} 7. Bg3 {[%emt 0:00:16]} d6 {[%emt 0:00:06]} 8. c3 {[%emt 0:01:58] is currently scoring better than 8.h3.} a6 {[%emt 0:00:58] C54: Giuoco Piano: 4 c3 Nf6, main lines with 5 d4 and 5 d3.} 9. a4 {[%emt 0:09:02]} Ba7 {[%emt 0:00:31]} 10. Nbd2 {[%emt 0:01:03]} Nh5 {[%emt 0:05:45] [#]} ({Black should try} 10... O-O $11) 11. Nxe5 $1 $14 {[%emt 0:19:41]} Nxg3 {[%emt 0:00:41]} 12. Bxf7+ {[%emt 0:00:11]} Kf8 {[%emt 0:00:16]} 13. Ng6+ {[%emt 0:00:32]} Kxf7 {[%emt 0:00:32]} 14. Nxh8+ {[%emt 0:00:12]} Qxh8 {[%emt 0:00:05]} 15. hxg3 {[%emt 0:00:32]} Qf6 {[%emt 0:01:52][%csl Ga7][%cal Rf6f2]} 16. Qe2 {[%emt 0:14:07]} Kg7 {[%emt 0:01:59]} 17. d4 {[%emt 0:05:24]} Bd7 {[%emt 0:00:36] [#]} 18. O-O $146 {[%emt 0:06:37]} ({Predecessor:} 18. O-O-O b5 19. f4 bxa4 20. Rdf1 a3 21. bxa3 Nxd4 22. cxd4 Bb5 23. e5 dxe5 24. Qe4 {1-0 (56) Asis Gargatagli,H (2520)-Gomez Garrido,C (2524) Barcelona 2017}) 18... Re8 {[%emt 0:04:25]} 19. Qc4 {[%emt 0:03:49]} Re7 {[%emt 0:05:49]} 20. e5 $2 {[%emt 0:06:20]} (20. Rae1 $11 {and White has nothing to worry.}) 20... dxe5 $19 {[%emt 0:01:22]} 21. d5 {[%emt 0:00:02]} Nb8 {[%emt 0:00:40]} 22. Ne4 {[%emt 0:02:39]} Qf7 {[%emt 0:01:14]} 23. Qb4 {[%emt 0:01:31]} (23. Rad1 $19) 23... c5 {[%emt 0:02:49]} ({Better is} 23... Bf5 $1 $17 {aiming for ...Bxe4.} 24. Rae1 Bxe4 25. Qxe4 Nd7) 24. Qb3 {[%emt 0:03:59]} (24. Qxb7 $2 Bf5 25. Qb3 Bxe4 $19) 24... b6 {[%emt 0:31:31]} (24... Nc6 $5) 25. c4 {[%emt 0:01:51]} Qg6 {[%emt 0:00:28]} 26. f3 {[%emt 0:04:04]} a5 {[%emt 0:00:06]} 27. Rae1 {[%emt 0:02:10]} Bf5 {[%emt 0:04:57]} 28. Nf2 {[%emt 0:07:03]} Kh7 {[%emt 0:03:40]} (28... Na6 $11) 29. Qc3 $14 {[%emt 0:00:49]} Qg7 {[%emt 0:00:08]} 30. f4 $1 {[%emt 0:00:56]} gxf4 {[%emt 0:03:20]} (30... exf4 $2 31. Rxe7 Qxe7 32. Re1 $18) 31. gxf4 {[%emt 0:00:15]} Nd7 {[%emt 0:00:09]} 32. fxe5 {[%emt 0:01:18]} (32. d6 $1 $14 Re6 33. fxe5 Nxe5 34. Nd1) 32... Rxe5 $40 {[%emt 0:00:12][%mdl 128] White is in trouble.} ({Reject} 32... Nxe5 33. Ne4 Bxe4 34. Rxe4 $11) 33. Nd1 {[%emt 0:04:24] [#]} (33. Rd1 $142) 33... Be4 $1 {[%emt 0:03:55] Black is more active.} 34. Rxe4 $2 {[%emt 0:03:34]} (34. Re2 $17) 34... Rxe4 $19 {[%emt 0:00:07]} 35. Qc2 {[%emt 0:00:07] [#]} Qg6 {[%emt 0:00:26] ...Bb8 is the strong threat.} ({Weaker is} 35... Qd4+ 36. Nf2 Nf6 37. Re1 $14) 36. d6 {[%emt 0:00:26] Threatens to win with Nc3.} Kg8 {[%emt 0:01:15]} 37. Nc3 Re6 {[%emt 0:00:47]} 38. Qd2 {[%emt 0:01:24]} Qg5 {[%emt 0:04:57]} ({Wrong is} 38... Rxd6 $2 39. Nd5 $19) 39. Qd1 {[%emt 0:00:32]} Bb8 {[%emt 0:00:57] Weighted Error Value: White=0.35/Black=0.15 (very precise)} 0-1

[Event "7th Porticcio Open 2022"]
[Site "Porticcio"]
[Date "2022.07.06"]
[Round "7.7"]
[White "Mathieu, Phileas"]
[Black "Navrotescu, Andreea"]
[Result "1/2-1/2"]
[ECO "C29"]
[WhiteElo "2331"]
[BlackElo "2373"]
[Annotator "TA"]
[PlyCount "101"]
[EventDate "2022.07.02"]
[EventType "swiss"]
[EventCountry "FRA"]
[SourceTitle "playchess.com"]
[Source "ChessBase"]
[SourceQuality "1"]
[TimeControl "5400+30"]

{[%evp 9,101,-20,9,-8,13,-1,26,0,0,0,0,0,0,-12,27,-26,-9,-7,-9,-7,-8,-8,-7,-10,-10,-57,-58,-48,-54,-50,-49,-42,-19,-20,-17,-28,-13,-24,-23,-31,-16,-21,-14,-34,-33,-26,-23,-54,-30,-33,-27,-33,0,0,0,0,0,0,0,0,0,0,0,0,0,0,0,0,0,0,0,0,0,0,0,0,0,0,0,0,0,0,0,0,0,0,0,0,0,0,0,0,0,0]} 1. e4 {[%emt 0:00:09]} e5 {[%emt 0:00:34]} 2. Nc3 {[%emt 0:02:39]} Nf6 {[%emt 0:00:21]} 3. f4 {[%emt 0:00:29]} d5 {[%emt 0:00:07]} 4. fxe5 {[%emt 0:00:04]} Nxe4 {[%emt 0:00:07]} 5. Qf3 {[%emt 0:01:24]} Nxc3 {[%emt 0:04:52]} 6. dxc3 {[%emt 0:00:34] C29: Vienna Game: 2...Nf6 3 f4.} Be7 {[%emt 0:07:51]} 7. Bf4 {[%emt 0:05:38]} O-O {[%emt 0:04:10]} 8. O-O-O {[%emt 0:00:31] White has an edge.} c6 {[%emt 0:00:56] [#]} 9. Qg3 $146 {[%emt 0:02:50] Strongly threatening Bh6.} ({Predecessor:} 9. h4 f6 10. Qg3 Nd7 11. Nf3 fxe5 12. Nxe5 Nxe5 13. Bxe5 Bf6 14. c4 Be6 15. cxd5 cxd5 {0-1 (51) Bueno,A (2145)-Goltseva,E (2284) Chess.com INT 2022}) 9... Bh4 {[%emt 0:04:08]} 10. Qe3 {[%emt 0:05:49]} Qb6 {[%emt 0:09:41]} 11. Nf3 {[%emt 0:05:25]} Be7 {[%emt 0:06:02]} 12. Bd3 {[%emt 0:03:27]} ({White should play} 12. Qe1) 12... Nd7 {[%emt 0:02:56]} 13. c4 {[%emt 0:16:36]} Qxe3+ {[%emt 0:08:13]} 14. Bxe3 {[%emt 0:00:58]} Nb6 {[%emt 0:00:03]} 15. Bxb6 {[%emt 0:02:17]} dxc4 $1 {[%emt 0:08:48]} 16. Bxc4 {[%emt 0:04:07]} axb6 {[%emt 0:00:04]} 17. e6 {[%emt 0:00:05]} (17. a3 $11) 17... Bxe6 $15 {[%emt 0:00:43]} 18. Bxe6 {[%emt 0:00:11]} fxe6 {[%emt 0:00:02]} 19. a3 {[%emt 0:05:21]} Rad8 {[%emt 0:04:45]} 20. Rde1 {[%emt 0:00:28]} Rd6 {[%emt 0:00:32]} 21. Re4 {[%emt 0:00:41]} Bf6 {[%emt 0:01:21]} 22. Rhe1 {[%emt 0:00:24]} Re8 {[%emt 0:00:13]} 23. c3 {[%emt 0:00:56]} b5 {[%emt 0:03:25]} 24. Kc2 {[%emt 0:05:08]} Kf7 {[%emt 0:01:27]} 25. R1e2 {[%emt 0:01:32]} Rd5 {[%emt 0:03:07]} 26. a4 {[%emt 0:08:04]} bxa4 {[%emt 0:02:49]} 27. Rxa4 {[%emt 0:00:01]} h5 {[%emt 0:00:56]} 28. Rae4 {[%emt 0:02:34]} g5 {[%emt 0:03:16]} 29. h3 {[%emt 0:00:06][%cal Bh2h3,Bh3g4,Bg4g5][%mdl 32]} Rf5 {[%emt 0:01:54]} 30. Rf2 {[%emt 0:18:13]} Rd8 {[%emt 0:02:55]} 31. g4 {[%emt 0:01:08] The position is equal.} hxg4 {[%emt 0:00:03]} 32. hxg4 {[%emt 0:00:04]} Rfd5 {[%emt 0:01:16]} 33. Nxg5+ {[%emt 0:00:39]} Rxg5 {[%emt 0:00:03]} 34. Ref4 {[%emt 0:00:05]} Rg6 {[%emt 0:06:06]} 35. g5 $1 {[%emt 0:00:06][%mdl 64] [#] Pin} Rd5 {[%emt 0:02:53]} 36. Rxf6+ {[%emt 0:03:06]} Rxf6 {[%emt 0:00:16]} 37. Rxf6+ $11 {[%emt 0:00:54][%mdl 4096] Endgame KR-KR} Ke7 {[%emt 0:00:02]} 38. Rg6 {[%emt 0:00:50]} Kf7 {[%emt 0:04:05]} 39. Rf6+ {[%emt 0:00:02]} Ke7 {[%emt 0:00:06]} 40. Rg6 {[%emt 0:00:02]} b5 {[%emt 0:04:03]} 41. Rg7+ {[%emt 0:01:30]} Kd6 {[%emt 0:00:09]} 42. b4 {[%emt 0:00:17]} Rf5 {[%emt 0:02:29]} 43. Kd3 {[%emt 0:01:34]} Rf3+ {[%emt 0:00:22]} 44. Kc2 {[%emt 0:02:32]} Rg3 {[%emt 0:01:07]} 45. Rg8 {[%emt 0:00:30]} Ke5 {[%emt 0:00:44]} 46. Rc8 {[%emt 0:00:26]} Kd5 {[%emt 0:00:28]} 47. Rd8+ {[%emt 0:00:07]} Ke5 {[%emt 0:00:27]} 48. Rc8 {[%emt 0:00:02]} Kd5 {[%emt 0:02:09]} 49. Rd8+ {[%emt 0:00:02]} Ke5 50. Rc8 Kd5 51. Rd8+ {Weighted Error Value: White=0.06 (flawless) /Black=0.06 (flawless)} 1/2-1/2

[Event "7th Porticcio Open 2022"]
[Site "Porticcio"]
[Date "2022.07.06"]
[Round "7.8"]
[White "Mastrovasilis, Athanasios"]
[Black "Derige Kane, Yan"]
[Result "1-0"]
[ECO "A14"]
[WhiteElo "2527"]
[BlackElo "2112"]
[Annotator "TA"]
[PlyCount "124"]
[EventDate "2022.07.02"]
[EventType "swiss"]
[EventCountry "FRA"]
[SourceTitle "playchess.com"]
[Source "ChessBase"]
[SourceQuality "1"]
[TimeControl "5400+30"]

{[%evp 18,124,9,10,12,21,8,8,8,14,37,31,23,30,28,29,25,23,19,23,20,21,25,0,0,0,10,10,10,10,11,16,32,0,9,9,12,-15,0,0,24,9,9,14,30,27,27,26,26,26,50,30,30,30,30,30,27,27,27,27,40,33,27,23,35,16,16,10,10,10,37,0,0,0,0,0,0,0,25,25,77,83,92,92,3608,2340,2112,2372,1527,1011,2515,1793,1918,767,29978,29979,29979,29980,29980,29981,29981,29982,29982,29983,29983,29982,29983,29984,29990]} 1. Nf3 {[%emt 0:00:03]} Nf6 {[%emt 0:00:35]} 2. c4 {[%emt 0:00:12]} e6 {[%emt 0:00:05]} 3. g3 {[%emt 0:00:18]} d5 {[%emt 0:00:05]} 4. Bg2 {[%emt 0:00:09]} Be7 {[%emt 0:00:04]} 5. O-O {[%emt 0:00:09]} O-O {[%emt 0:00:08]} 6. b3 {[%emt 0:00:09]} c5 {[%emt 0:00:41]} 7. cxd5 {[%emt 0:01:24]} Nxd5 {[%emt 0:03:47]} 8. Bb2 {[%emt 0:00:08]} Nc6 {[%emt 0:01:54]} 9. d4 {[%emt 0:01:10]} cxd4 {[%emt 0:00:13]} 10. Nxd4 {[%emt 0:00:10]} Bd7 {[%emt 0:00:24] A14: English Opening: 1...e6 with b3 by White.} 11. Na3 {[%emt 0:11:08][%cal Bb1a3,Ba3c4,Bc4a5,Ba5b3,Bb3d4][%mdl 32]} Nxd4 {[%emt 0:19:05]} 12. Qxd4 {[%emt 0:01:27][%csl Gb2][%cal Rd4g7] [#]} Bf6 {[%emt 0:03:41] The position is equal.} 13. Qd2 {[%emt 0:00:07]} Bxb2 {[%emt 0:05:18]} 14. Qxb2 {[%emt 0:01:34]} Bc6 {[%emt 0:00:15]} 15. Rfd1 {[%emt 0:07:29]} Qe7 {[%emt 0:04:17]} 16. Nc4 {[%emt 0:00:35]} Nb4 {[%emt 0:03:59]} 17. e4 {[%emt 0:14:46]} Rfd8 {[%emt 0:03:24]} 18. a3 {[%emt 0:19:34] [#]} Na6 $146 {[%emt 0:09:19]} ({Predecessor:} 18... Nd3 19. Qc3 Nc5 20. e5 Bxg2 21. Kxg2 Nd7 22. Rd6 f6 23. exf6 Nxf6 24. Qe5 Rxd6 25. Qxd6 {½-½ (54) Pantsulaia,L (2614)-Petrosyan,M (2573) Mumbai 2019}) 19. b4 {[%emt 0:05:13] [#] Hoping for b5.} Bb5 {[%emt 0:12:58]} 20. Na5 {[%emt 0:08:26]} b6 {[%emt 0:03:00]} 21. Nb3 {[%emt 0:01:17]} Ba4 {[%emt 0:02:24]} 22. e5 {[%emt 0:00:35]} Rac8 {[%emt 0:00:59]} 23. Rxd8+ {[%emt 0:05:44]} Rxd8 {[%emt 0:00:20]} 24. Nd4 {[%emt 0:00:21]} Qc7 {[%emt 0:05:36]} 25. f4 {[%emt 0:01:43]} g6 {[%emt 0:04:10]} 26. Rc1 {[%emt 0:00:57]} Qd7 {[%emt 0:01:12]} 27. Nc6 {[%emt 0:03:57]} Bxc6 {[%emt 0:01:34]} (27... Nc5 {feels hotter.} 28. bxc5 Bxc6 29. cxb6 Bxg2 30. Kxg2 Qb7+) 28. Bxc6 {[%emt 0:00:10]} Qd3 {[%emt 0:00:58] ...Qe3+ is the strong threat.} 29. Qc3 {[%emt 0:01:59]} Qxc3 30. Rxc3 $11 {[%emt 0:00:02][%mdl 4096] Endgame Strongly threatening Bb5. KRB-KRN} Rc8 {[%emt 0:07:52]} 31. Rc2 {[%emt 0:00:13]} Nb8 {[%emt 0:00:45]} 32. Ba4 {[%emt 0:00:16]} Rxc2 {[%emt 0:01:38]} 33. Bxc2 {[%emt 0:00:02] KB-KN} h5 {[%emt 0:05:29]} 34. Bd3 {[%emt 0:01:20]} Nc6 {[%emt 0:00:46]} 35. Kf2 {[%emt 0:00:14]} Ne7 {[%emt 0:00:25]} 36. Be4 {[%emt 0:02:45]} Kf8 {[%emt 0:00:36]} 37. Ke3 {[%emt 0:01:49]} Ke8 $1 {[%emt 0:00:27]} 38. Kd4 {[%emt 0:00:10]} Kd7 {[%emt 0:00:33]} 39. Kc4 {[%emt 0:00:42]} Kc7 {[%emt 0:00:31]} 40. a4 {[%emt 0:00:09]} Nc8 {[%emt 0:00:31]} 41. h3 {[%emt 0:01:46]} Ne7 {[%emt 0:00:30]} 42. g4 {[%emt 0:01:21]} hxg4 {[%emt 0:00:22]} 43. hxg4 {[%emt 0:00:02]} Nc8 {[%emt 0:00:38]} 44. a5 {[%emt 0:01:29]} a6 {[%emt 0:00:30]} 45. Bc2 {[%emt 0:05:45]} Ne7 46. axb6+ {[%emt 0:00:37]} Kxb6 {[%emt 0:00:45]} 47. Ba4 {[%emt 0:00:08]} Nc6 {[%emt 0:00:41]} 48. g5 {[%emt 0:00:23]} Ne7 {[%emt 0:00:34]} (48... Nd8 $11 {keeps the balance.}) 49. Be8 $16 {[%emt 0:01:16]} Nd5 {[%emt 0:00:07]} 50. f5 $1 {[%emt 0:00:52]} ({Don't play} 50. Bxf7 $6 Nxf4 51. Be8 Nh3 $11) 50... Ne3+ $2 {[%emt 0:00:46][%mdl 8192] This move loses the game for Black.} (50... Ne7 $16) 51. Kd3 $18 {[%emt 0:00:37]} Nxf5 {[%emt 0:00:36]} 52. Bxf7 {[%emt 0:00:43]} Ne7 {[%emt 0:00:32]} 53. Bxe6 {[%emt 0:00:21]} Nc6 {[%emt 0:00:07]} 54. Ke4 {[%emt 0:00:25] And now Bd7 would win.} Ne7 {[%emt 0:00:47]} 55. Bd7 {[%emt 0:01:44]} (55. Bc4 $142 Kc6 56. Bxa6) 55... a5 {[%emt 0:00:22]} 56. bxa5+ {[%emt 0:00:11] White mates.} Kxa5 {[%emt 0:00:04]} 57. e6 {[%emt 0:00:05]} Kb6 {[%emt 0:00:15]} 58. Ke5 {[%emt 0:00:06]} Kc7 {[%emt 0:00:13]} 59. Be8 {[%emt 0:00:58]} Kd8 {[%emt 0:01:34]} 60. Bf7 {[%emt 0:00:10]} Kc7 {[%emt 0:00:31]} 61. Kf6 {[%emt 0:00:33][%csl LRe7,LRg6]} Kd6 {[%emt 0:00:12]} 62. Bxg6 {[%emt 0:00:09]} Kd5 {Weighted Error Value: White=0.06 (flawless) /Black=0.22 (precise)} 1-0

[Event "7th Porticcio Open 2022"]
[Site "Porticcio"]
[Date "2022.07.07"]
[Round "8.1"]
[White "Martin Duque, Jesus"]
[Black "Maurizzi, Marc Andria"]
[Result "0-1"]
[ECO "A28"]
[WhiteElo "2378"]
[BlackElo "2506"]
[Annotator "TA"]
[PlyCount "102"]
[EventDate "2022.07.02"]
[EventType "swiss"]
[EventCountry "FRA"]
[SourceTitle "playchess.com"]
[Source "ChessBase"]
[SourceQuality "1"]
[TimeControl "5400+30"]

{[%evp 13,102,-10,8,-33,-24,-34,0,-20,0,-29,0,-26,-19,-132,-140,-133,-140,-131,-142,-155,-134,-203,-204,-195,-184,-183,-165,-228,-178,-285,-255,-230,-152,-157,-160,-159,-153,-144,-138,-211,-212,-230,-225,-226,-196,-196,-207,-193,-204,-185,-191,-192,-188,-172,-133,-201,-96,-227,-243,-236,-233,-237,-181,-197,-201,-201,-192,-174,-173,-220,-219,-253,-247,-251,-247,-255,-248,-712,-723,-721,-714,-651,-616,-744,-734,-874,-865,-729,-729,-687,-613]} 1. c4 {[%emt 0:01:58]} e5 {[%emt 0:00:42]} 2. e3 {[%emt 0:00:08]} Nf6 {[%emt 0:02:00]} 3. Nc3 {[%emt 0:00:03]} Nc6 {[%emt 0:00:45]} 4. Nf3 {[%emt 0:00:18]} Bb4 {[%emt 0:01:58]} 5. Qc2 {[%emt 0:00:03]} O-O {[%emt 0:12:06]} 6. Nd5 {[%emt 0:01:39]} Re8 {[%emt 0:00:50]} 7. a3 {[%emt 0:06:08]} Bf8 {[%emt 0:06:58]} 8. Bd3 {[%emt 0:19:58] A28: English Opening: Four Knights Variation.} g6 {[%emt 0:05:25]} 9. Rb1 {[%emt 0:09:24] [#]} Nxd5 $146 {[%emt 0:12:05]} ({Predecessor:} 9... Bg7 10. b4 d6 11. b5 Nd4 12. Nxf6+ Qxf6 13. Nxd4 exd4 14. O-O Qh4 15. Bb2 Bd7 {½-½ (45) Ljubojevic,L (2605)-Anand,V (2710) Monte Carlo 1993}) 10. cxd5 {[%emt 0:00:09] The position is equal.} Ne7 {[%emt 0:00:07]} 11. e4 d6 {[%emt 0:01:39]} (11... c6 $5 {[%cal Rc6d5]} 12. d6 (12. Nxe5 $2 Nxd5 13. O-O Nf4 $19) 12... Nd5 $1 $11) 12. O-O {[%emt 0:19:20]} Bg4 {[%emt 0:07:35]} 13. b4 {[%emt 0:02:26]} (13. Be2 $11 {remains equal.}) 13... Bxf3 $17 {[%emt 0:02:07]} 14. gxf3 {[%emt 0:00:02]} c6 {[%emt 0:00:03]} 15. Bb2 {[%emt 0:05:41]} Bh6 {[%emt 0:06:03]} 16. Kh1 {[%emt 0:03:22]} Qd7 {[%emt 0:03:52] aiming for ...Qh3.} 17. Be2 {[%emt 0:03:22]} (17. dxc6 $17 {keeps fighting.} Qh3 18. Rg1 Qxf3+ 19. Rg2 Nxc6 20. Bc4) 17... cxd5 $19 {[%emt 0:01:12]} 18. d4 {[%emt 0:01:11]} Rac8 {[%emt 0:02:31]} 19. Qd3 {[%emt 0:00:22]} Bf4 {[%emt 0:01:21]} 20. Kg2 {[%emt 0:02:32] Against Qh3+} (20. Rg1 $142) 20... Qe6 {[%emt 0:02:32]} 21. b5 {[%emt 0:01:47]} (21. h4 {was worth a try.}) 21... Qf6 {[%emt 0:01:12] ( -> ...Qg5+)} 22. Rg1 {[%emt 0:01:38]} Qg5+ {[%emt 0:02:57]} 23. Kh1 {[%emt 0:00:14]} Qh6 {[%emt 0:00:49][%csl Gf4][%cal Rh6h2] Black is more active.} 24. Rg2 {[%emt 0:02:04]} Red8 {[%emt 0:02:30]} 25. Rd1 {[%emt 0:00:46]} Qh3 {[%emt 0:01:48]} 26. exd5 {[%emt 0:05:35]} (26. a4 $17) 26... Nxd5 {[%emt 0:06:25]} 27. Qe4 {[%emt 0:04:41]} Nf6 {[%emt 0:04:56]} 28. Qxb7 {[%emt 0:00:12]} Rc2 {[%emt 0:00:36] The board is on fire.} 29. Bf1 {[%emt 0:00:12][%cal Og2g6] [#] Hoping for Rxg6+!} Qc8 $1 {[%emt 0:03:07]} (29... Rxb2 {[#]} 30. Rxg6+ $1 hxg6 31. Bxh3 Rxf2 32. dxe5 $16 (32. Bg2 Rd7 $14)) 30. Qxc8 {[%emt 0:02:13]} Rdxc8 {[%emt 0:00:01]} 31. dxe5 {[%emt 0:00:14]} dxe5 {[%emt 0:00:03]} (31... Rxb2 32. exf6 Rc3 33. a4 $17) 32. Rb1 {[%emt 0:00:19]} Rd2 {[%emt 0:01:21]} 33. a4 {[%emt 0:01:15]} Rcc2 {[%emt 0:00:05]} 34. Ba1 {[%emt 0:01:49]} (34. Ba3 $17) 34... Ra2 {[%emt 0:02:12]} (34... Nd5 $19 {has better winning chances.} 35. a5 Ra2) 35. a5 {[%emt 0:00:15] This costs White the game.} (35. Bc3 $17 {was necessary.}) 35... Nd5 {[%emt 0:01:25]} ({Inferior is} 35... Rxf2 36. Rxf2 Rxf2 37. b6 axb6 38. axb6 $11) 36. b6 {[%emt 0:02:55]} axb6 {[%emt 0:00:08]} (36... Rxa5 $2 37. b7 Kg7 38. b8=Q $18) 37. a6 {[%emt 0:00:30]} Nc7 {[%emt 0:01:18]} 38. Bc3 {[%emt 0:00:33]} Rdc2 {[%emt 0:00:13]} 39. Bc4 {[%emt 0:01:19]} Ra3 {[%emt 0:02:04]} 40. Bb4 {[%emt 0:00:04]} Rxf3 {[%emt 0:00:41]} 41. Bf1 {[%emt 0:01:15]} (41. Bb3 {might work better.} Rc1+ 42. Rxc1 Bxc1 43. Rg3 Rxg3 44. fxg3 Nxa6 45. Bd6) 41... Ra2 {[%emt 0:01:48]} (41... Rfxf2 42. Rxf2 Rxf2 43. Bd6 Nxa6 44. Bxa6 $17) ({Not} 41... Rcxf2 42. Be2 Rxe2 43. Rxe2 Nxa6 44. Bd6 $15) 42. Bd6 {[%emt 0:00:42]} Nxa6 {[%emt 0:00:12]} 43. Rxb6 {[%emt 0:00:07]} Ra1 {[%emt 0:00:56]} ({Worse is} 43... Rfxf2 44. Rxf2 Rxf2 45. Bxa6 $15) 44. Kg1 {[%emt 0:00:18]} Rd3 {[%emt 0:01:11] And now ...Rdd1 would win.} 45. Bxe5 $2 {[%emt 0:01:43]} (45. Rxa6 Rxa6 46. Bxd3 Rxd6 47. Be2) 45... Bxe5 {Black is clearly winning.} 46. Rxa6 Re1 {[%emt 0:00:55]} 47. Rg5 {[%emt 0:00:34]} Rd2 {[%emt 0:01:36] ...Bd4 is the strong threat.} 48. Kg2 {[%emt 0:01:49]} Bd4 {[%emt 0:00:00]} 49. Bc4 {[%emt 0:00:16]} Rxf2+ {[%emt 0:00:03]} 50. Kh3 {[%emt 0:00:25]} Be5 {[%emt 0:00:48]} 51. Ra2 {[%emt 0:00:59]} Re3+ {[%emt 0:00:03] Weighted Error Value: White=0.40/Black=0.14 (very precise)} 0-1